[Event "Live Chess"]
[Site "Chess.com"]
[Date "2023.05.20"]
[Round "-"]
[White "blunderabit"]
[Black "Brooms1989"]
[Result "0-1"]
[WhiteElo "1819"]
[BlackElo "1055"]
[TimeControl "300"]
[EndTime "14:24:46 PDT"]
[Termination "Brooms1989 won on time"]

1. e4 {[%clk 0:04:57.9]} 1... e5 {[%clk 0:04:57.6]} 2. Nf3 {[%clk 0:04:55.4]}
2... Nc6 {[%clk 0:04:56.1]} 3. Bb5 {[%clk 0:04:54.6]} 3... a6 {[%clk 0:04:55.2]}
4. Ba4 {[%clk 0:04:53]} 4... Nf6 {[%clk 0:04:54.5]} 5. O-O {[%clk 0:04:51.2]}
5... Bc5 {[%clk 0:04:52.8]} 6. c3 {[%clk 0:04:46.5]} 6... Bb6 {[%clk 0:04:51.3]}
7. Re1 {[%clk 0:04:37.4]} 7... O-O {[%clk 0:04:49.8]} 8. d4 {[%clk 0:04:22.4]}
8... Re8 {[%clk 0:04:36.1]} 9. d5 {[%clk 0:03:56.9]} 9... Ne7 {[%clk 0:04:31.8]}
10. Be3 {[%clk 0:03:47.1]} 10... Bxe3 {[%clk 0:04:26.1]} 11. Rxe3 {[%clk
0:03:44.9]} 11... Ng6 {[%clk 0:04:24.7]} 12. g3 {[%clk 0:03:37.2]} 12... b5
{[%clk 0:04:23.3]} 13. Bc2 {[%clk 0:03:32.6]} 13... d6 {[%clk 0:04:22]} 14. Nbd2
{[%clk 0:03:22.9]} 14... Bg4 {[%clk 0:04:12.2]} 15. a4 {[%clk 0:03:15.4]} 15...
Qd7 {[%clk 0:04:03.5]} 16. Qf1 {[%clk 0:03:02.4]} 16... Bxf3 {[%clk 0:03:43]}
17. Rxf3 {[%clk 0:02:49.9]} 17... Qg4 {[%clk 0:03:31.1]} 18. h3 {[%clk
0:02:44.4]} 18... Qd7 {[%clk 0:03:15.2]} 19. Kg2 {[%clk 0:02:33.4]} 19... c6
{[%clk 0:03:07.2]} 20. dxc6 {[%clk 0:02:12.9]} 20... Qxc6 {[%clk 0:03:07.1]} 21.
Qe2 {[%clk 0:01:50.3]} 21... Reb8 {[%clk 0:02:35]} 22. axb5 {[%clk 0:01:02.2]}
22... Qxb5 {[%clk 0:02:21.3]} 23. Qxb5 {[%clk 0:00:56.6]} 23... axb5 {[%clk
0:02:21.2]} 24. Rxa8 {[%clk 0:00:53.3]} 24... Rxa8 {[%clk 0:02:21.1]} 25. Bb3
{[%clk 0:00:50.4]} 25... Rd8 {[%clk 0:02:07.2]} 26. Rd3 {[%clk 0:00:41.4]} 26...
Ne7 {[%clk 0:01:58.5]} 27. Kf3 {[%clk 0:00:18.2]} 27... d5 {[%clk 0:01:45]} 28.
exd5 {[%clk 0:00:16.7]} 28... Nfxd5 {[%clk 0:01:43.1]} 29. Bxd5 {[%clk
0:00:15.2]} 29... Rxd5 {[%clk 0:01:35]} 30. Rxd5 {[%clk 0:00:12.9]} 30... Nxd5
{[%clk 0:01:34.9]} 31. Ke4 {[%clk 0:00:10.6]} 31... Nc7 {[%clk 0:01:29]} 32.
Kxe5 {[%clk 0:00:09.3]} 32... f6+ {[%clk 0:01:28.7]} 33. Kd6 {[%clk 0:00:08.3]}
33... Ne8+ {[%clk 0:01:26.2]} 34. Kc5 {[%clk 0:00:07.5]} 34... Kf7 {[%clk
0:01:23.7]} 35. Kxb5 {[%clk 0:00:06.1]} 35... Nc7+ {[%clk 0:01:23.4]} 36. Kc6
{[%clk 0:00:03.4]} 36... Ne6 {[%clk 0:01:22]} 37. b4 {[%clk 0:00:03.3]} 37...
Ke8 {[%clk 0:01:18.6]} 38. b5 {[%clk 0:00:02.6]} 38... Nd8+ {[%clk 0:01:18.3]}
0-1

[Event "Live Chess"]
[Site "Chess.com"]
[Date "2023.05.20"]
[Round "-"]
[White "lightningorderyt"]
[Black "gmnorfolk"]
[Result "0-1"]
[WhiteElo "520"]
[BlackElo "2103"]
[TimeControl "300"]
[EndTime "14:24:57 PDT"]
[Termination "gmnorfolk won by checkmate"]

1. e4 {[%clk 0:04:56.5]} 1... e5 {[%clk 0:04:58.3]} 2. Nc3 {[%clk 0:04:56.4]}
2... Nf6 {[%clk 0:04:56.3]} 3. Nf3 {[%clk 0:04:56.3]} 3... d6 {[%clk 0:04:53.2]}
4. Qe2 {[%clk 0:04:56.2]} 4... Be7 {[%clk 0:04:50.9]} 5. d4 {[%clk 0:04:56.1]}
5... Nbd7 {[%clk 0:04:47.7]} 6. Qc4 {[%clk 0:04:48.6]} 6... O-O {[%clk
0:04:44.4]} 7. Ng5 {[%clk 0:04:41.2]} 7... exd4 {[%clk 0:04:42.8]} 8. Qb3 {[%clk
0:04:19.7]} 8... dxc3 {[%clk 0:04:41.1]} 9. Bc4 {[%clk 0:04:16.3]} 9... Ne5
{[%clk 0:04:34.7]} 10. Bxf7+ {[%clk 0:04:05.7]} 10... Nxf7 {[%clk 0:04:32.9]}
11. Nxf7 {[%clk 0:04:00.8]} 11... Rxf7 {[%clk 0:04:31]} 12. Qxc3 {[%clk
0:03:51.6]} 12... Nxe4 {[%clk 0:04:29]} 13. Qd4 {[%clk 0:03:41.3]} 13... Bf6
{[%clk 0:04:27]} 14. Qxe4 {[%clk 0:03:35.6]} 14... Re7 {[%clk 0:04:26.2]} 15. f3
{[%clk 0:02:53]} 15... d5 {[%clk 0:04:20.3]} 16. O-O {[%clk 0:02:40.6]} 16...
dxe4 {[%clk 0:04:18.3]} 17. fxe4 {[%clk 0:02:38.8]} 17... Rxe4 {[%clk
0:04:14.7]} 18. Bf4 {[%clk 0:02:30.5]} 18... Qd4+ {[%clk 0:04:12.5]} 19. Kh1
{[%clk 0:02:21.9]} 19... Rxf4 {[%clk 0:04:11.3]} 20. g3 {[%clk 0:02:15.3]} 20...
Rxf1+ {[%clk 0:04:09.4]} 21. Rxf1 {[%clk 0:02:11.8]} 21... Bh3 {[%clk
0:04:09.3]} 22. Rg1 {[%clk 0:01:55.9]} 22... Qxg1+ {[%clk 0:04:04.1]} 23. Kxg1
{[%clk 0:01:53.8]} 23... Bd4+ {[%clk 0:04:03.9]} 24. Kh1 {[%clk 0:01:48.4]}
24... Rf8 {[%clk 0:04:03.5]} 25. c3 {[%clk 0:01:39.1]} 25... Rf1# {[%clk
0:04:03.4]} 0-1

[Event "Live Chess"]
[Site "Chess.com"]
[Date "2023.05.20"]
[Round "-"]
[White "NatashaRegan"]
[Black "wot-not"]
[Result "1-0"]
[WhiteElo "1746"]
[BlackElo "1522"]
[TimeControl "300"]
[EndTime "14:25:30 PDT"]
[Termination "NatashaRegan won by resignation"]

1. e4 {[%clk 0:04:54.7]} 1... e6 {[%clk 0:04:57]} 2. d4 {[%clk 0:04:50.5]} 2...
d5 {[%clk 0:04:49.4]} 3. Nc3 {[%clk 0:04:49.3]} 3... Nf6 {[%clk 0:04:43]} 4. Bg5
{[%clk 0:04:45.1]} 4... Bb4 {[%clk 0:04:41.7]} 5. e5 {[%clk 0:04:35.4]} 5... h6
{[%clk 0:04:40.2]} 6. exf6 {[%clk 0:04:31]} 6... hxg5 {[%clk 0:04:33.2]} 7. fxg7
{[%clk 0:04:28.7]} 7... Rg8 {[%clk 0:04:32]} 8. Bd3 {[%clk 0:04:22.4]} 8... Qf6
{[%clk 0:04:23]} 9. Qh5 {[%clk 0:04:18.5]} 9... Qxg7 {[%clk 0:04:20.3]} 10. Nf3
{[%clk 0:04:12.3]} 10... Nc6 {[%clk 0:04:14.3]} 11. O-O {[%clk 0:04:08.6]} 11...
Bxc3 {[%clk 0:04:13.7]} 12. bxc3 {[%clk 0:04:06.6]} 12... Bd7 {[%clk 0:04:12.1]}
13. Rab1 {[%clk 0:04:04.2]} 13... O-O-O {[%clk 0:04:10.8]} 14. a4 {[%clk
0:03:59.6]} 14... f5 {[%clk 0:04:09.6]} 15. Bb5 {[%clk 0:03:54.3]} 15... Rh8
{[%clk 0:04:01.6]} 16. Bxc6 {[%clk 0:03:47.3]} 16... Rxh5 {[%clk 0:03:57.8]} 17.
Bxb7+ {[%clk 0:03:45]} 17... Kb8 {[%clk 0:03:57.1]} 18. Bxd5+ {[%clk 0:03:33]}
18... Kc8 {[%clk 0:03:48.5]} 19. Bb7+ {[%clk 0:03:31.1]} 19... Kb8 {[%clk
0:03:46.5]} 20. Ne5 {[%clk 0:03:17.5]} 20... c6 {[%clk 0:03:29.8]} 21. Bxc6+
{[%clk 0:02:59.6]} 21... Kc7 {[%clk 0:03:28.6]} 22. Rb7+ {[%clk 0:02:55.1]}
22... Kd6 {[%clk 0:03:27.6]} 23. Bxd7 {[%clk 0:02:45.8]} 23... Qf6 {[%clk
0:02:36.2]} 24. Rxa7 {[%clk 0:02:36.8]} 24... g4 {[%clk 0:02:11.3]} 25. Rb1
{[%clk 0:02:32.8]} 25... Qh4 {[%clk 0:02:00.2]} 26. Rb6+ {[%clk 0:02:25]} 26...
Ke7 {[%clk 0:01:41.1]} 27. Ng6+ {[%clk 0:02:22.8]} 1-0

[Event "Live Chess"]
[Site "Chess.com"]
[Date "2023.05.20"]
[Round "-"]
[White "rideuv21"]
[Black "GEMdzq"]
[Result "0-1"]
[WhiteElo "1802"]
[BlackElo "2239"]
[TimeControl "300"]
[EndTime "14:25:40 PDT"]
[Termination "GEMdzq won by resignation"]

1. e4 {[%clk 0:04:59.1]} 1... d6 {[%clk 0:04:59]} 2. d4 {[%clk 0:04:57.9]} 2...
Nf6 {[%clk 0:04:58.7]} 3. Nc3 {[%clk 0:04:56.6]} 3... g6 {[%clk 0:04:58.4]} 4.
Nf3 {[%clk 0:04:55.8]} 4... Bg7 {[%clk 0:04:58.1]} 5. Bc4 {[%clk 0:04:55.4]}
5... O-O {[%clk 0:04:56.2]} 6. Bb3 {[%clk 0:04:54.7]} 6... Na6 {[%clk
0:04:51.1]} 7. h3 {[%clk 0:04:52.4]} 7... c5 {[%clk 0:04:50.1]} 8. Be3 {[%clk
0:04:49.7]} 8... Bd7 {[%clk 0:04:33.4]} 9. a4 {[%clk 0:04:45.3]} 9... Rc8 {[%clk
0:04:27.4]} 10. dxc5 {[%clk 0:04:41.3]} 10... Nxc5 {[%clk 0:04:26]} 11. Bxc5
{[%clk 0:04:39.7]} 11... Rxc5 {[%clk 0:04:25.9]} 12. O-O {[%clk 0:04:38]} 12...
Nh5 {[%clk 0:04:05.7]} 13. Qd2 {[%clk 0:04:29.2]} 13... Qa5 {[%clk 0:04:00]} 14.
Nd5 {[%clk 0:04:16.7]} 14... Re8 {[%clk 0:03:52.9]} 15. Qxa5 {[%clk 0:04:12.8]}
15... Rxa5 {[%clk 0:03:52.2]} 16. c3 {[%clk 0:04:11.9]} 16... e6 {[%clk
0:03:44.7]} 17. Ne3 {[%clk 0:04:06.1]} 17... Nf4 {[%clk 0:03:42.8]} 18. Rfd1
{[%clk 0:04:03.9]} 18... Ra6 {[%clk 0:03:26.6]} 19. Nc4 {[%clk 0:04:02.3]} 19...
d5 {[%clk 0:03:24.3]} 20. Nce5 {[%clk 0:03:53.2]} 20... Bc6 {[%clk 0:03:20.5]}
21. Nxc6 {[%clk 0:03:43.5]} 21... bxc6 {[%clk 0:03:20.4]} 22. exd5 {[%clk
0:03:42.1]} 22... cxd5 {[%clk 0:03:20.1]} 23. Nd4 {[%clk 0:03:36.2]} 23... Rb6
{[%clk 0:03:15.6]} 24. Ra3 {[%clk 0:03:07.2]} 24... Reb8 {[%clk 0:03:14.1]} 25.
Ba2 {[%clk 0:02:10]} 25... Rxb2 {[%clk 0:03:12]} 26. g3 {[%clk 0:02:09.4]} 26...
Nxh3+ {[%clk 0:03:05]} 27. Kg2 {[%clk 0:02:08]} 27... Nxf2 {[%clk 0:03:02.6]}
0-1

[Event "Live Chess"]
[Site "Chess.com"]
[Date "2023.05.20"]
[Round "-"]
[White "JoeRoot66"]
[Black "FlyingChessKestrel13"]
[Result "0-1"]
[WhiteElo "1906"]
[BlackElo "2114"]
[TimeControl "300"]
[EndTime "14:25:40 PDT"]
[Termination "FlyingChessKestrel13 won by resignation"]

1. e4 {[%clk 0:04:59.3]} 1... c6 {[%clk 0:04:57.4]} 2. Nf3 {[%clk 0:04:58.2]}
2... d5 {[%clk 0:04:56.8]} 3. Nc3 {[%clk 0:04:57.9]} 3... Nf6 {[%clk 0:04:54.6]}
4. e5 {[%clk 0:04:56.7]} 4... Ne4 {[%clk 0:04:54]} 5. d4 {[%clk 0:04:56.5]} 5...
Bf5 {[%clk 0:04:52]} 6. Bd3 {[%clk 0:04:53.9]} 6... e6 {[%clk 0:04:50.8]} 7. O-O
{[%clk 0:04:50.4]} 7... Be7 {[%clk 0:04:46.6]} 8. Re1 {[%clk 0:04:45.4]} 8...
Nxc3 {[%clk 0:04:44.4]} 9. bxc3 {[%clk 0:04:45.3]} 9... Bg6 {[%clk 0:04:42.9]}
10. Rb1 {[%clk 0:04:43]} 10... b6 {[%clk 0:04:40.3]} 11. a3 {[%clk 0:04:39.9]}
11... Nd7 {[%clk 0:04:37.8]} 12. a4 {[%clk 0:04:39]} 12... c5 {[%clk 0:04:36.3]}
13. Ba3 {[%clk 0:04:32.7]} 13... c4 {[%clk 0:04:34.2]} 14. Bxe7 {[%clk
0:04:30.1]} 14... Qxe7 {[%clk 0:04:32.8]} 15. Bxg6 {[%clk 0:04:29.5]} 15... hxg6
{[%clk 0:04:30.5]} 16. Qd2 {[%clk 0:04:27.4]} 16... O-O {[%clk 0:04:19.5]} 17.
Qf4 {[%clk 0:04:22.2]} 17... Rfb8 {[%clk 0:04:16.1]} 18. Ng5 {[%clk 0:04:20.9]}
18... Nf8 {[%clk 0:04:10.8]} 19. Re3 {[%clk 0:04:18]} 19... f6 {[%clk
0:04:03.4]} 20. exf6 {[%clk 0:04:10.8]} 20... gxf6 {[%clk 0:04:01]} 21. Nxe6
{[%clk 0:03:59.2]} 21... Nxe6 {[%clk 0:03:49.3]} 22. Qg4 {[%clk 0:03:57.7]}
22... Kf7 {[%clk 0:03:45.3]} 23. Rbe1 {[%clk 0:03:55.6]} 23... f5 {[%clk
0:03:44]} 24. Qg3 {[%clk 0:03:48]} 24... f4 {[%clk 0:03:38.3]} 25. Rxe6 {[%clk
0:03:41]} 25... Qxe6 {[%clk 0:03:33.5]} 26. Qxf4+ {[%clk 0:03:38.6]} 26... Qf6
{[%clk 0:03:32.7]} 27. Qc7+ {[%clk 0:03:35.4]} 27... Kf8 {[%clk 0:03:29.2]} 0-1

[Event "Live Chess"]
[Site "Chess.com"]
[Date "2023.05.20"]
[Round "-"]
[White "defenderalist"]
[Black "GMHarry-youtube"]
[Result "1-0"]
[WhiteElo "1630"]
[BlackElo "2036"]
[TimeControl "300"]
[EndTime "14:25:52 PDT"]
[Termination "defenderalist won by checkmate"]

1. e4 {[%clk 0:04:57.5]} 1... e5 {[%clk 0:04:56.5]} 2. Nf3 {[%clk 0:04:56.8]}
2... Nf6 {[%clk 0:04:56]} 3. Nc3 {[%clk 0:04:55.2]} 3... Bc5 {[%clk 0:04:54.4]}
4. Bc4 {[%clk 0:04:47.1]} 4... O-O {[%clk 0:04:51.8]} 5. O-O {[%clk 0:04:45.5]}
5... a6 {[%clk 0:04:49.6]} 6. h3 {[%clk 0:04:43.3]} 6... b5 {[%clk 0:04:48]} 7.
Bb3 {[%clk 0:04:38.3]} 7... Bb7 {[%clk 0:04:41.8]} 8. Nxe5 {[%clk 0:04:35.6]}
8... Nc6 {[%clk 0:04:39.6]} 9. Nxc6 {[%clk 0:04:34.3]} 9... dxc6 {[%clk
0:04:37.8]} 10. d3 {[%clk 0:04:33.5]} 10... Qd6 {[%clk 0:04:32.3]} 11. Be3
{[%clk 0:04:29.5]} 11... Bxe3 {[%clk 0:04:30.6]} 12. fxe3 {[%clk 0:04:28.4]}
12... Qg3 {[%clk 0:04:24.9]} 13. Qf3 {[%clk 0:04:24.8]} 13... Qg6 {[%clk
0:04:19.7]} 14. a3 {[%clk 0:04:20]} 14... c5 {[%clk 0:04:14.4]} 15. Nd5 {[%clk
0:04:15.8]} 15... Nxd5 {[%clk 0:04:09.7]} 16. Bxd5 {[%clk 0:04:14.5]} 16... Bxd5
{[%clk 0:04:04.5]} 17. exd5 {[%clk 0:04:13.5]} 17... Rae8 {[%clk 0:04:01.3]} 18.
e4 {[%clk 0:04:12.4]} 18... Qd6 {[%clk 0:03:54.7]} 19. Qf2 {[%clk 0:04:05.4]}
19... f5 {[%clk 0:03:32.8]} 20. Rae1 {[%clk 0:03:58.7]} 20... fxe4 {[%clk
0:03:29.2]} 21. Rxe4 {[%clk 0:03:34.5]} 21... Rxf2 {[%clk 0:03:19.2]} 22. Rxe8+
{[%clk 0:03:33.1]} 22... Rf8 {[%clk 0:03:18.4]} 23. Rexf8+ {[%clk 0:03:30.7]}
23... Qxf8 {[%clk 0:03:18.3]} 24. Rxf8+ {[%clk 0:03:29.4]} 24... Kxf8 {[%clk
0:03:18.2]} 25. Kf2 {[%clk 0:03:20.9]} 25... Ke7 {[%clk 0:03:16.7]} 26. Kf3
{[%clk 0:03:20.2]} 26... Kd6 {[%clk 0:03:14.4]} 27. Ke4 {[%clk 0:03:19.3]} 27...
g6 {[%clk 0:03:10.8]} 28. c4 {[%clk 0:03:17.8]} 28... h6 {[%clk 0:02:49.5]} 29.
g4 {[%clk 0:03:15.4]} 29... Kd7 {[%clk 0:02:43.7]} 30. Ke5 {[%clk 0:03:11.3]}
30... Ke7 {[%clk 0:02:42.3]} 31. h4 {[%clk 0:03:01]} 31... b4 {[%clk 0:02:23.9]}
32. a4 {[%clk 0:02:48.1]} 32... b3 {[%clk 0:02:01]} 33. d4 {[%clk 0:02:43.8]}
33... cxd4 {[%clk 0:01:56.9]} 34. Kxd4 {[%clk 0:02:42.4]} 34... c6 {[%clk
0:01:49.4]} 35. Kc5 {[%clk 0:01:59.2]} 35... cxd5 {[%clk 0:01:38.2]} 36. cxd5
{[%clk 0:01:58.2]} 36... Kd7 {[%clk 0:01:37.3]} 37. d6 {[%clk 0:01:53.4]} 37...
g5 {[%clk 0:01:23.4]} 38. hxg5 {[%clk 0:01:51.3]} 38... hxg5 {[%clk 0:01:23.3]}
39. a5 {[%clk 0:01:45.1]} 39... Kd8 {[%clk 0:01:15.3]} 40. Kb4 {[%clk
0:01:40.5]} 40... Kd7 {[%clk 0:01:14]} 41. Kc5 {[%clk 0:01:35.8]} 41... Kd8
{[%clk 0:01:06.6]} 42. Kd5 {[%clk 0:01:30.2]} 42... Kd7 {[%clk 0:01:02.8]} 43.
Ke5 {[%clk 0:01:29.6]} 43... Kc6 {[%clk 0:01:01.5]} 44. Kf5 {[%clk 0:01:26.6]}
44... Kxd6 {[%clk 0:00:59.9]} 45. Kxg5 {[%clk 0:01:25.8]} 45... Ke5 {[%clk
0:00:49.3]} 46. Kg6 {[%clk 0:01:23.3]} 46... Kd4 {[%clk 0:00:48.9]} 47. g5
{[%clk 0:01:22.4]} 47... Kd3 {[%clk 0:00:48.8]} 48. Kf7 {[%clk 0:01:20.7]} 48...
Kc2 {[%clk 0:00:48.7]} 49. g6 {[%clk 0:01:19.7]} 49... Kxb2 {[%clk 0:00:48.6]}
50. g7 {[%clk 0:01:18.8]} 50... Ka3 {[%clk 0:00:24.8]} 51. g8=Q {[%clk
0:01:17.3]} 51... b2 {[%clk 0:00:24.1]} 52. Qb8 {[%clk 0:01:07.5]} 52... Ka2
{[%clk 0:00:22.4]} 53. Qh2 {[%clk 0:00:57.6]} 53... Ka3 {[%clk 0:00:19.8]} 54.
Qh1 {[%clk 0:00:49.5]} 54... Ka2 {[%clk 0:00:19]} 55. Ke6 {[%clk 0:00:48.7]}
55... b1=Q {[%clk 0:00:17.3]} 56. Qxb1+ {[%clk 0:00:47.3]} 56... Kxb1 {[%clk
0:00:17.2]} 57. Kd5 {[%clk 0:00:46.6]} 57... Kb2 {[%clk 0:00:17]} 58. Kc5 {[%clk
0:00:44.8]} 58... Kb3 {[%clk 0:00:16.3]} 59. Kb6 {[%clk 0:00:44]} 59... Kc4
{[%clk 0:00:15.3]} 60. Kxa6 {[%clk 0:00:43.1]} 60... Kb4 {[%clk 0:00:09.7]} 61.
Kb6 {[%clk 0:00:41.9]} 61... Kc4 {[%clk 0:00:08]} 62. a6 {[%clk 0:00:41.3]}
62... Kd5 {[%clk 0:00:07.9]} 63. a7 {[%clk 0:00:40.5]} 63... Kd6 {[%clk
0:00:07.8]} 64. a8=Q {[%clk 0:00:39.6]} 64... Kd7 {[%clk 0:00:07.7]} 65. Qc6+
{[%clk 0:00:38.3]} 65... Ke7 {[%clk 0:00:07.6]} 66. Qc7+ {[%clk 0:00:37]} 66...
Kf8 {[%clk 0:00:06.8]} 67. Kc6 {[%clk 0:00:35.5]} 67... Ke8 {[%clk 0:00:05.7]}
68. Kd6 {[%clk 0:00:34.7]} 68... Kf8 {[%clk 0:00:04.8]} 69. Ke6 {[%clk
0:00:33.8]} 69... Kg8 {[%clk 0:00:04]} 70. Kf6 {[%clk 0:00:32.7]} 70... Kf8
{[%clk 0:00:02.8]} 71. Qc8# {[%clk 0:00:31.2]} 1-0

[Event "Live Chess"]
[Site "Chess.com"]
[Date "2023.05.20"]
[Round "-"]
[White "HoarseyHorsey"]
[Black "SavagePawn7"]
[Result "1/2-1/2"]
[WhiteElo "1403"]
[BlackElo "788"]
[TimeControl "300"]
[EndTime "14:25:52 PDT"]
[Termination "Game drawn - timeout vs insufficient material"]

1. d4 {[%clk 0:04:59]} 1... e5 {[%clk 0:04:57.5]} 2. dxe5 {[%clk 0:04:57.8]}
2... d6 {[%clk 0:04:55.4]} 3. Nf3 {[%clk 0:04:56.7]} 3... Nc6 {[%clk 0:04:52.5]}
4. Bf4 {[%clk 0:04:55.1]} 4... dxe5 {[%clk 0:04:29.7]} 5. Qxd8+ {[%clk
0:04:51.8]} 5... Kxd8 {[%clk 0:04:25.3]} 6. Bxe5 {[%clk 0:04:47.4]} 6... Nxe5
{[%clk 0:04:23.4]} 7. Nxe5 {[%clk 0:04:46.3]} 7... Ke8 {[%clk 0:04:15.4]} 8. Nc3
{[%clk 0:04:40.9]} 8... Bd6 {[%clk 0:04:12.7]} 9. Nf3 {[%clk 0:04:39.2]} 9...
Bg4 {[%clk 0:04:07.9]} 10. e4 {[%clk 0:04:35.5]} 10... Rd8 {[%clk 0:03:57]} 11.
O-O-O {[%clk 0:04:30]} 11... Bb4 {[%clk 0:03:54.1]} 12. Bb5+ {[%clk 0:04:17.3]}
12... c6 {[%clk 0:03:51.9]} 13. Rxd8+ {[%clk 0:04:16.2]} 13... Kxd8 {[%clk
0:03:50.5]} 14. Bc4 {[%clk 0:04:14.1]} 14... Ke8 {[%clk 0:03:45.7]} 15. Ne2
{[%clk 0:03:55.3]} 15... Nf6 {[%clk 0:03:36.5]} 16. Bd3 {[%clk 0:03:49]} 16...
Kd7 {[%clk 0:03:26.4]} 17. Ne5+ {[%clk 0:03:41.9]} 17... Ke6 {[%clk 0:03:23.8]}
18. Nxg4 {[%clk 0:03:40.8]} 18... Nxg4 {[%clk 0:03:21.5]} 19. Bc4+ {[%clk
0:03:25.1]} 19... Ke7 {[%clk 0:03:15.8]} 20. f3 {[%clk 0:03:19.4]} 20... Ne5
{[%clk 0:03:11.1]} 21. Bb3 {[%clk 0:03:16]} 21... Rd8 {[%clk 0:03:07.1]} 22. Rd1
{[%clk 0:03:14.1]} 22... Rxd1+ {[%clk 0:03:04.6]} 23. Kxd1 {[%clk 0:03:14]}
23... a5 {[%clk 0:02:54.8]} 24. a3 {[%clk 0:03:10.9]} 24... Bc5 {[%clk
0:02:50.1]} 25. h3 {[%clk 0:02:53.4]} 25... g6 {[%clk 0:02:46.1]} 26. f4 {[%clk
0:02:37.2]} 26... Nd7 {[%clk 0:02:38.3]} 27. Kd2 {[%clk 0:02:27.9]} 27... b5
{[%clk 0:02:31]} 28. Ba2 {[%clk 0:02:22.7]} 28... Bd6 {[%clk 0:02:21.9]} 29. Ke3
{[%clk 0:02:07.1]} 29... Bc5+ {[%clk 0:02:13.2]} 30. Kf3 {[%clk 0:02:02.5]}
30... f5 {[%clk 0:02:07.6]} 31. exf5 {[%clk 0:01:53.4]} 31... gxf5 {[%clk
0:02:06]} 32. Bg8 {[%clk 0:01:50.7]} 32... h6 {[%clk 0:02:02.8]} 33. g4 {[%clk
0:01:24.5]} 33... fxg4+ {[%clk 0:02:00.6]} 34. hxg4 {[%clk 0:01:24.4]} 34... Nf6
{[%clk 0:01:58.8]} 35. Ba2 {[%clk 0:01:16.8]} 35... a4 {[%clk 0:01:52.3]} 36.
Nc3 {[%clk 0:01:01.2]} 36... Bd4 {[%clk 0:01:48.5]} 37. g5 {[%clk 0:00:44.3]}
37... hxg5 {[%clk 0:01:46.5]} 38. fxg5 {[%clk 0:00:44.2]} 38... Nd5 {[%clk
0:01:43.1]} 39. Nxd5+ {[%clk 0:00:41]} 39... cxd5 {[%clk 0:01:41.8]} 40. c3
{[%clk 0:00:36.6]} 40... Bg7 {[%clk 0:01:38]} 41. Bxd5 {[%clk 0:00:35.2]} 41...
Kd6 {[%clk 0:01:36.5]} 42. Bf7 {[%clk 0:00:26.1]} 42... Ke7 {[%clk 0:01:34.4]}
43. g6 {[%clk 0:00:20.9]} 43... Kf6 {[%clk 0:01:29.6]} 44. Ke4 {[%clk
0:00:18.1]} 44... Ke7 {[%clk 0:01:27.7]} 45. Kd3 {[%clk 0:00:16.9]} 45... Kd6
{[%clk 0:01:25.9]} 46. Kc2 {[%clk 0:00:16.1]} 46... Kc5 {[%clk 0:01:24]} 47. b3
{[%clk 0:00:15.4]} 47... axb3+ {[%clk 0:01:22]} 48. Kxb3 {[%clk 0:00:15.3]}
48... Kb6 {[%clk 0:01:19.4]} 49. Kb4 {[%clk 0:00:14.1]} 49... Ka6 {[%clk
0:01:16.2]} 50. c4 {[%clk 0:00:12.1]} 50... Kb6 {[%clk 0:01:15.1]} 51. c5+
{[%clk 0:00:10.6]} 51... Kc6 {[%clk 0:01:11.7]} 52. Be8+ {[%clk 0:00:08.9]}
52... Kc7 {[%clk 0:01:09.4]} 53. Bxb5 {[%clk 0:00:08.3]} 53... Kb7 {[%clk
0:01:06.7]} 54. a4 {[%clk 0:00:07.7]} 54... Kc7 {[%clk 0:01:04]} 55. a5 {[%clk
0:00:07.3]} 55... Kb7 {[%clk 0:01:02.8]} 56. a6+ {[%clk 0:00:06.9]} 56... Ka7
{[%clk 0:01:01.3]} 57. Ka5 {[%clk 0:00:05.5]} 57... Bd4 {[%clk 0:00:56.8]} 58.
Ka4 {[%clk 0:00:04.8]} 58... Kb8 {[%clk 0:00:53.3]} 59. Kb3 {[%clk 0:00:03.6]}
59... Ka7 {[%clk 0:00:52.1]} 60. Kc4 {[%clk 0:00:02.9]} 60... Bf6 {[%clk
0:00:50.1]} 61. Kd5 {[%clk 0:00:02.3]} 61... Kb8 {[%clk 0:00:48.6]} 62. c6
{[%clk 0:00:02.2]} 62... Ka7 {[%clk 0:00:47.5]} 63. Kd6 {[%clk 0:00:01.6]} 63...
Kb8 {[%clk 0:00:46.5]} 64. c7+ {[%clk 0:00:01.5]} 64... Ka7 {[%clk 0:00:45.5]}
65. c8=Q {[%clk 0:00:00.2]} 65... Kb6 {[%clk 0:00:43.2]} 66. Qd7 {[%clk
0:00:00.1]} 66... Ka5 {[%clk 0:00:42.3]} 1/2-1/2

[Event "Live Chess"]
[Site "Chess.com"]
[Date "2023.05.20"]
[Round "-"]
[White "ChessTWSS"]
[Black "Delacorta"]
[Result "1-0"]
[WhiteElo "1544"]
[BlackElo "1401"]
[TimeControl "300"]
[EndTime "14:26:00 PDT"]
[Termination "ChessTWSS won by resignation"]

1. d4 {[%clk 0:04:54.5]} 1... e6 {[%clk 0:04:58.6]} 2. Bf4 {[%clk 0:04:49.8]}
2... f5 {[%clk 0:04:57]} 3. e3 {[%clk 0:04:44.1]} 3... g5 {[%clk 0:04:55.8]} 4.
Qh5+ {[%clk 0:04:36]} 4... Ke7 {[%clk 0:04:50.4]} 5. Bxg5+ {[%clk 0:04:31.7]}
5... Nf6 {[%clk 0:04:49.6]} 6. Bxf6+ {[%clk 0:04:24.3]} 6... Kxf6 {[%clk
0:04:48]} 7. Qh4+ {[%clk 0:04:15.2]} 7... Kf7 {[%clk 0:04:36.5]} 8. Qxd8 {[%clk
0:04:11.7]} 8... Be7 {[%clk 0:04:35.8]} 9. Qxh8 {[%clk 0:04:04.5]} 9... Bf6
{[%clk 0:04:34.7]} 10. Qxc8 {[%clk 0:03:47.1]} 10... Bg7 {[%clk 0:04:32.3]} 11.
Qxb7 {[%clk 0:03:42.4]} 11... Bf6 {[%clk 0:04:31.8]} 1-0